[Event "Championnat d'Europe de Blitz"]
[Date "2024.12.09"]
[White "Djukic, Nikola"]
[Black "Grigoriants, Sergey"]
[WhiteElo "2493"]
[BlackElo "2542"]
[Round "10.15"]
[Result "1-0"]
[TimeControl "180+2"]

1. e4 {[%clk 00:03:02]} e5 {[%emt 00:00:04] [%clk 00:03:01]} 2. Nf3 {[%emt
00:00:02] [%clk 00:03:03]} Nc6 {[%emt 00:00:02] [%clk 00:03:01]} 3. Bb5 {[%emt
00:00:02] [%clk 00:03:03]} a6 {[%emt 00:00:01] [%clk 00:03:01]} 4. Ba4 {[%clk
00:03:04]} Nf6 {[%emt 00:00:02] [%clk 00:03:01]} 5. O-O {[%emt 00:00:02] [%clk
00:03:04]} b5 {[%emt 00:00:02] [%clk 00:03:02]} 6. Bb3 {[%clk 00:03:04]} Bc5
{[%emt 00:00:01] [%clk 00:03:03]} 7. a4 {[%emt 00:00:02] [%clk 00:03:05]} Rb8
{[%emt 00:00:02] [%clk 00:03:03]} 8. c3 {[%emt 00:00:01] [%clk 00:03:05]} d6
{[%emt 00:00:03] [%clk 00:03:02]} 9. d4 {[%emt 00:00:01] [%clk 00:03:06]} Bb6
{[%emt 00:00:02] [%clk 00:03:03]} 10. a5 {[%clk 00:03:06]} Ba7 {[%emt 00:00:03]
[%clk 00:03:02]} 11. h3 {[%clk 00:03:07]} O-O {[%emt 00:00:13] [%clk 00:02:52]}
12. Be3 {[%emt 00:00:03] [%clk 00:03:06]} exd4 {[%emt 00:00:13] [%clk 00:02:40]}
13. cxd4 {[%emt 00:00:02] [%clk 00:03:07]} Nb4 {[%clk 00:02:42]} 14. Nc3 {[%emt
00:00:18] [%clk 00:02:51]} Bb7 {[%emt 00:00:26] [%clk 00:02:18]} 15. e5 {[%emt
00:01:12] [%clk 00:01:41]} dxe5 {[%emt 00:00:34] [%clk 00:01:46]} 16. Nxe5
{[%emt 00:00:01] [%clk 00:01:41]} Nfd5 {[%emt 00:00:23] [%clk 00:01:25]} 17.
Nxd5 {[%emt 00:00:10] [%clk 00:01:33]} Bxd5 {[%emt 00:00:37] [%clk 00:00:50]}
18. Rc1 {[%emt 00:00:04] [%clk 00:01:32]} Rc8 {[%emt 00:00:34] [%clk 00:00:18]}
19. Bd2 {[%emt 00:00:51] [%clk 00:00:42]} c5 {[%emt 00:00:14] [%clk 00:00:06]}
20. Bxb4 {[%emt 00:00:05] [%clk 00:00:40]} Bxb3 {[%emt 00:00:02] [%clk
00:00:06]} 21. Qxb3 {[%emt 00:00:01] [%clk 00:00:40]} cxb4 {[%emt 00:00:02]
[%clk 00:00:07]} 22. Nc6 {[%emt 00:00:10] [%clk 00:00:32]} Qd7 {[%emt 00:00:03]
[%clk 00:00:06]} 23. Nxa7 {[%emt 00:00:02] [%clk 00:00:32]} Qxa7 {[%emt
00:00:02] [%clk 00:00:07]} 24. Qxb4 {[%emt 00:00:01] [%clk 00:00:32]} Rcd8
{[%emt 00:00:03] [%clk 00:00:05]} 25. Rfd1 {[%emt 00:00:03] [%clk 00:00:31]} Rd7
{[%emt 00:00:02] [%clk 00:00:05]} 26. d5 {[%emt 00:00:04] [%clk 00:00:30]} Rfd8
{[%emt 00:00:01] [%clk 00:00:06]} 27. d6 {[%emt 00:00:02] [%clk 00:00:29]} h6
{[%emt 00:00:02] [%clk 00:00:07]} 28. Rc6 {[%emt 00:00:02] [%clk 00:00:29]} Re8
{[%emt 00:00:04] [%clk 00:00:05]} 29. Qc5 {[%emt 00:00:17] [%clk 00:00:13]} Qa8
{[%emt 00:00:03] [%clk 00:00:05]} 30. Rc7 {[%emt 00:00:10] [%clk 00:00:06]} Red8
{[%emt 00:00:01] [%clk 00:00:06]} 31. Qc6 {[%emt 00:00:03] [%clk 00:00:05]} Qxc6
{[%emt 00:00:05] [%clk 00:00:03]} 32. Rxc6 {[%emt 00:00:01] [%clk 00:00:06]} Ra8
{[%emt 00:00:03] [%clk 00:00:03]} 33. b4 {[%clk 00:00:07]} f6 {[%clk 00:00:04]}
34. Rc7 {[%emt 00:00:02] [%clk 00:00:06]} Rad8 {[%emt 00:00:02] [%clk 00:00:05]}
35. Rc6 {[%emt 00:00:02] [%clk 00:00:06]} Ra8 {[%clk 00:00:06]} 36. f4 {[%emt
00:00:02] [%clk 00:00:06]} Kf7 {[%emt 00:00:03] [%clk 00:00:06]} 37. f5 {[%clk
00:00:07]} g6 {[%emt 00:00:01] [%clk 00:00:07]} 38. g4 {[%clk 00:00:09]} h5
{[%clk 00:00:08]} 39. Kf2 {[%emt 00:00:01] [%clk 00:00:09]} hxg4 {[%clk
00:00:10]} 40. hxg4 {[%clk 00:00:11]} gxf5 {[%emt 00:00:02] [%clk 00:00:10]} 41.
gxf5 {[%clk 00:00:12]} Re8 {[%emt 00:00:03] [%clk 00:00:10]} 42. Rxa6 {[%emt
00:00:02] [%clk 00:00:13]} Re5 {[%clk 00:00:11]} 43. Rb6 {[%emt 00:00:02] [%clk
00:00:13]} Rxf5+ {[%emt 00:00:01] [%clk 00:00:12]} 44. Ke3 {[%emt 00:00:01]
[%clk 00:00:14]} Rh5 {[%emt 00:00:04] [%clk 00:00:10]} 45. a6 {[%emt 00:00:01]
[%clk 00:00:15]} Ke6 {[%emt 00:00:02] [%clk 00:00:10]} 46. Rd4 {[%emt 00:00:05]
[%clk 00:00:12]} Rh3+ {[%emt 00:00:01] [%clk 00:00:10]} 47. Kd2 {[%emt 00:00:01]
[%clk 00:00:14]} Ra3 {[%clk 00:00:11]} 48. Kc2 {[%emt 00:00:02] [%clk 00:00:13]}
Ke5 {[%emt 00:00:02] [%clk 00:00:11]} 49. Rd1 {[%emt 00:00:01] [%clk 00:00:14]}
f5 {[%emt 00:00:07] [%clk 00:00:07]} 50. Kb2 {[%emt 00:00:02] [%clk 00:00:14]}
Rh3 {[%emt 00:00:01] [%clk 00:00:07]} 51. Rxb5+ {[%clk 00:00:15]} Ke4 {[%emt
00:00:01] [%clk 00:00:08]} 52. Re1+ {[%emt 00:00:02] [%clk 00:00:16]} Kd4 {[%emt
00:00:01] [%clk 00:00:09]} 53. Rxf5 {[%emt 00:00:02] [%clk 00:00:16]} Kc4 {[%emt
00:00:03] [%clk 00:00:08]} 54. Re4+ {[%emt 00:00:01] [%clk 00:00:16]} Kd3 {[%emt
00:00:02] [%clk 00:00:08]} 55. Ref4 {[%emt 00:00:03] [%clk 00:00:16]} Rxd6
{[%emt 00:00:01] [%clk 00:00:09]} 56. b5 {[%emt 00:00:02] [%clk 00:00:17]} Rh2+
{[%emt 00:00:02] [%clk 00:00:08]} 57. Kb3 {[%emt 00:00:01] [%clk 00:00:18]} Rh1
{[%emt 00:00:01] [%clk 00:00:09]} 58. Kb4 {[%clk 00:00:19]} Rb1+ {[%emt
00:00:02] [%clk 00:00:09]} 59. Kc5 {[%emt 00:00:01] [%clk 00:00:20]} Rd8 {[%clk
00:00:10]} 60. Rf3+ {[%emt 00:00:02] [%clk 00:00:20]} Ke4 {[%clk 00:00:11]} 61.
R5f4+ {[%emt 00:00:01] [%clk 00:00:20]} Ke5 {[%emt 00:00:01] [%clk 00:00:12]}
62. Rf5 {[%emt 00:00:02] [%clk 00:00:20]} Ke4 {[%clk 00:00:14]} 63. R3f4+ {[%emt
00:00:02] [%clk 00:00:20]} Ke3 {[%clk 00:00:15]} 64. Ra4 {[%emt 00:00:04] [%clk
00:00:19]} Rc8+ {[%emt 00:00:01] [%clk 00:00:16]} 65. Kb6 {[%emt 00:00:01] [%clk
00:00:20]} Rb8+ {[%clk 00:00:17]} 66. Ka5 {[%emt 00:00:01] [%clk 00:00:21]} Kd3
{[%emt 00:00:05]} 67. a7 {[%clk 00:00:21]} Ra8 {[%emt 00:00:03] [%clk 00:00:15]}
68. b6 {[%emt 00:00:01] [%clk 00:00:21]} 1-0

[Site "Europe Echecs"]

[Event "Championnat d'Europe de Blitz"]
[Date "2024.12.09"]
[White "Ragger, Markus"]
[Black "Cvitan, Ognjen"]
[WhiteElo "2577"]
[BlackElo "2413"]
[Round "10.16"]
[Result "1/2-1/2"]
[TimeControl "180+2"]

1. d4 {[%emt 00:03:36] [%clk 00:03:03]} Nf6 {[%emt 00:00:03] [%clk 00:03:00]} 2.
c4 {[%emt 00:00:02] [%clk 00:03:04]} e6 {[%emt 00:00:02] [%clk 00:03:00]} 3. Nf3
{[%emt 00:00:01] [%clk 00:03:05]} d5 {[%emt 00:00:01] [%clk 00:03:01]} 4. g3
{[%clk 00:03:06]} Be7 {[%emt 00:00:02] [%clk 00:03:01]} 5. Bg2 {[%emt 00:00:01]
[%clk 00:03:08]} O-O {[%emt 00:00:03] [%clk 00:03:00]} 6. O-O {[%emt 00:00:02]
[%clk 00:03:08]} c6 {[%emt 00:00:03] [%clk 00:02:58]} 7. Qc2 {[%emt 00:00:06]
[%clk 00:03:04]} b6 {[%emt 00:00:05] [%clk 00:02:55]} 8. Rd1 {[%emt 00:00:02]
[%clk 00:03:04]} Nbd7 {[%emt 00:00:03] [%clk 00:02:54]} 9. Nbd2 {[%emt 00:00:04]
[%clk 00:03:03]} c5 {[%emt 00:00:39] [%clk 00:02:17]} 10. e4 {[%emt 00:00:07]
[%clk 00:02:58]} dxc4 {[%emt 00:00:25] [%clk 00:01:54]} 11. Nxc4 {[%emt
00:00:23] [%clk 00:02:37]} Bb7 {[%emt 00:00:04] [%clk 00:01:51]} 12. e5 {[%emt
00:00:25] [%clk 00:02:14]} Nd5 {[%emt 00:00:01] [%clk 00:01:53]} 13. Qe4 {[%emt
00:00:21] [%clk 00:01:55]} cxd4 {[%emt 00:00:10] [%clk 00:01:45]} 14. Qg4 {[%emt
00:00:40] [%clk 00:01:17]} Kh8 {[%emt 00:00:32] [%clk 00:01:15]} 15. Nxd4 {[%emt
00:00:06] [%clk 00:01:13]} Rc8 {[%emt 00:00:02] [%clk 00:01:15]} 16. Nf3 {[%emt
00:00:39] [%clk 00:00:36]} b5 {[%emt 00:00:45] [%clk 00:00:32]} 17. Ne3 {[%emt
00:00:02] [%clk 00:00:35]} Qc7 {[%emt 00:00:03] [%clk 00:00:31]} 18. Nxd5 {[%emt
00:00:07] [%clk 00:00:31]} Bxd5 {[%emt 00:00:01] [%clk 00:00:32]} 19. Bf4 {[%emt
00:00:01] [%clk 00:00:32]} Qb7 {[%clk 00:00:34]} 20. Ne1 {[%emt 00:00:05] [%clk
00:00:29]} Nb6 {[%emt 00:00:06] [%clk 00:00:29]} 21. b3 {[%emt 00:00:06] [%clk
00:00:26]} Bxg2 {[%emt 00:00:01] [%clk 00:00:30]} 22. Nxg2 {[%emt 00:00:01]
[%clk 00:00:27]} Nd5 {[%clk 00:00:31]} 23. Bg5 {[%emt 00:00:05] [%clk 00:00:24]}
h6 {[%emt 00:00:15] [%clk 00:00:18]} 24. Bxe7 {[%emt 00:00:01] [%clk 00:00:25]}
Nxe7 {[%emt 00:00:01] [%clk 00:00:20]} 25. Nf4 {[%emt 00:00:05] [%clk 00:00:21]}
Rc5 {[%emt 00:00:06] [%clk 00:00:15]} 26. Re1 {[%emt 00:00:03] [%clk 00:00:21]}
Nf5 {[%emt 00:00:05] [%clk 00:00:12]} 27. Rad1 {[%emt 00:00:03] [%clk 00:00:19]}
Qc7 {[%emt 00:00:04] [%clk 00:00:10]} 28. Qe2 {[%emt 00:00:06] [%clk 00:00:16]}
Rd8 {[%emt 00:00:02] [%clk 00:00:10]} 29. Rxd8+ {[%emt 00:00:02] [%clk
00:00:16]} Qxd8 {[%clk 00:00:11]} 30. Rd1 {[%clk 00:00:18]} Qc7 {[%clk
00:00:12]} 31. Qd3 {[%emt 00:00:07] [%clk 00:00:12]} Qxe5 {[%emt 00:00:07] [%clk
00:00:07]} 32. Qd8+ {[%emt 00:00:03] [%clk 00:00:12]} Kh7 {[%emt 00:00:01] [%clk
00:00:09]} 33. Nd3 {[%emt 00:00:03] [%clk 00:00:10]} Qc7 {[%emt 00:00:05] [%clk
00:00:06]} 34. Nxc5 {[%emt 00:00:02] [%clk 00:00:10]} Qxc5 {[%clk 00:00:08]} 35.
Qd7 {[%emt 00:00:03] [%clk 00:00:09]} Kg6 {[%emt 00:00:04] [%clk 00:00:06]} 36.
Qd3 {[%emt 00:00:01] [%clk 00:00:10]} h5 {[%emt 00:00:02] [%clk 00:00:07]} 37.
h4 {[%emt 00:00:01] [%clk 00:00:10]} Kh7 {[%clk 00:00:08]} 38. Qe2 {[%emt
00:00:01] [%clk 00:00:11]} g6 {[%emt 00:00:02] [%clk 00:00:09]} 39. Qd2 {[%clk
00:00:12]} b4 {[%emt 00:00:02] [%clk 00:00:10]} 40. Rc1 {[%clk 00:00:12]} Qb6
{[%emt 00:00:01] [%clk 00:00:11]} 41. Qd7 {[%emt 00:00:03] [%clk 00:00:11]} Kg7
{[%emt 00:00:01] [%clk 00:00:12]} 42. Rc7 {[%clk 00:00:12]} Nh6 {[%emt 00:00:03]
[%clk 00:00:11]} 43. Rb7 {[%emt 00:00:03] [%clk 00:00:11]} Qc5 {[%emt 00:00:01]
[%clk 00:00:12]} 44. Rc7 {[%emt 00:00:02] [%clk 00:00:11]} Qe5 {[%emt 00:00:02]
[%clk 00:00:11]} 45. Rc4 {[%emt 00:00:06] [%clk 00:00:07]} Nf5 {[%emt 00:00:02]
[%clk 00:00:12]} 46. Qd2 {[%emt 00:00:03] [%clk 00:00:07]} a5 {[%emt 00:00:01]
[%clk 00:00:13]} 47. Kf1 {[%emt 00:00:01] [%clk 00:00:07]} Qb5 {[%emt 00:00:03]
[%clk 00:00:12]} 48. Qb2+ {[%emt 00:00:02] [%clk 00:00:07]} e5 {[%emt 00:00:01]
[%clk 00:00:13]} 49. Qe2 {[%emt 00:00:02] [%clk 00:00:07]} Qd5 {[%clk 00:00:14]}
50. Kg1 {[%emt 00:00:03] [%clk 00:00:07]} Nd4 {[%emt 00:00:01] [%clk 00:00:15]}
51. Qe3 {[%emt 00:00:06] [%clk 00:00:03]} Nf3+ {[%emt 00:00:01] [%clk 00:00:16]}
52. Kf1 {[%clk 00:00:04]} Nd2+ {[%emt 00:00:01] [%clk 00:00:17]} 53. Ke1 {[%clk
00:00:05]} Nxc4 {[%emt 00:00:02] [%clk 00:00:17]} 54. bxc4 {[%clk 00:00:06]}
Qxc4 {[%emt 00:00:02] [%clk 00:00:17]} 55. Qxe5+ {[%emt 00:00:01] [%clk
00:00:08]} Kh7 {[%clk 00:00:19]} 56. Qxa5 {[%emt 00:00:01] [%clk 00:00:08]} Qc5
{[%emt 00:00:09] [%clk 00:00:00]} 1/2-1/2

[Site "Europe Echecs"]

[Event "Championnat d'Europe de Blitz"]
[Date "2024.12.09"]
[White "Gavrilescu, David"]
[Black "Peyrer, Konstantin"]
[WhiteElo "2549"]
[BlackElo "2440"]
[Round "10.17"]
[Result "0-1"]
[TimeControl "180+2"]

1. e4 {[%clk 00:03:02]} e5 {[%emt 00:00:02] [%clk 00:03:03]} 2. Bc4 {[%emt
00:00:01] [%clk 00:03:03]} Nf6 {[%emt 00:00:08] [%clk 00:02:57]} 3. Nc3 {[%emt
00:00:04] [%clk 00:03:00]} Nc6 {[%emt 00:00:10] [%clk 00:02:49]} 4. d3 {[%emt
00:00:01] [%clk 00:03:01]} Na5 {[%emt 00:00:02] [%clk 00:02:50]} 5. Qf3 {[%emt
00:00:01] [%clk 00:03:02]} c6 {[%emt 00:00:08]} 6. a4 {[%emt 00:00:09] [%clk
00:02:54]} Nxc4 {[%emt 00:00:02] [%clk 00:02:45]} 7. dxc4 {[%clk 00:02:55]} Bb4
{[%emt 00:00:05] [%clk 00:02:43]} 8. Nge2 {[%emt 00:00:03] [%clk 00:02:54]} d6
{[%clk 00:02:44]} 9. h3 {[%emt 00:00:02] [%clk 00:02:54]} Be6 {[%emt 00:00:06]
[%clk 00:02:40]} 10. b3 {[%emt 00:00:08] [%clk 00:02:48]} d5 {[%emt 00:00:02]
[%clk 00:02:40]} 11. cxd5 {[%emt 00:00:21] [%clk 00:02:29]} cxd5 {[%emt
00:00:01] [%clk 00:02:41]} 12. exd5 {[%emt 00:00:03] [%clk 00:02:28]} Qxd5
{[%emt 00:00:02] [%clk 00:02:41]} 13. Qxd5 {[%emt 00:00:23] [%clk 00:02:07]}
Nxd5 {[%emt 00:00:02] [%clk 00:02:41]} 14. Bd2 {[%clk 00:02:08]} Nxc3 {[%emt
00:00:18] [%clk 00:02:25]} 15. Nxc3 {[%emt 00:00:02] [%clk 00:02:08]} O-O-O
{[%emt 00:00:31] [%clk 00:01:56]} 16. Ne4 {[%emt 00:00:14] [%clk 00:01:56]}
Bxd2+ {[%emt 00:00:17] [%clk 00:01:41]} 17. Nxd2 {[%clk 00:01:56]} Rhe8 {[%emt
00:00:16] [%clk 00:01:28]} 18. Ke2 {[%emt 00:00:02] [%clk 00:01:56]} Bf5 {[%emt
00:00:03] [%clk 00:01:27]} 19. Rac1 {[%emt 00:00:12] [%clk 00:01:46]} Rd4 {[%emt
00:00:03] [%clk 00:01:26]} 20. Nc4 {[%emt 00:00:07] [%clk 00:01:41]} Be6 {[%emt
00:00:07] [%clk 00:01:21]} 21. Ne3 {[%emt 00:00:03] [%clk 00:01:40]} f5 {[%emt
00:00:03] [%clk 00:01:20]} 22. Rhd1 {[%emt 00:00:26] [%clk 00:01:16]} Kc7 {[%emt
00:00:17] [%clk 00:01:05]} 23. c4 {[%emt 00:00:31] [%clk 00:00:48]} Kc6 {[%emt
00:00:31] [%clk 00:00:35]} 24. Nc2 {[%emt 00:00:02] [%clk 00:00:48]} Rxd1 {[%emt
00:00:04] [%clk 00:00:34]} 25. Rxd1 {[%emt 00:00:01] [%clk 00:00:49]} a5 {[%emt
00:00:06] [%clk 00:00:29]} 26. Ke3 {[%emt 00:00:05] [%clk 00:00:46]} Kc5 {[%emt
00:00:08] [%clk 00:00:24]} 27. f4 {[%emt 00:00:21] [%clk 00:00:26]} g5 {[%emt
00:00:15] [%clk 00:00:11]} 28. fxe5 {[%emt 00:00:06] [%clk 00:00:22]} f4+ {[%clk
00:00:13]} 29. Kf3 {[%emt 00:00:14] [%clk 00:00:10]} Bf7 {[%emt 00:00:06] [%clk
00:00:08]} 30. Rd7 {[%emt 00:00:03] [%clk 00:00:09]} Bh5+ {[%clk 00:00:09]} 31.
Kf2 {[%emt 00:00:04] [%clk 00:00:07]} Rxe5 {[%emt 00:00:01] [%clk 00:00:10]} 32.
Nd4 {[%clk 00:00:08]} Re4 {[%emt 00:00:03] [%clk 00:00:09]} 33. Nf3 {[%emt
00:00:02] [%clk 00:00:08]} b6 {[%emt 00:00:06] [%clk 00:00:06]} 34. Rxh7 {[%emt
00:00:03] [%clk 00:00:07]} Bxf3 {[%emt 00:00:01] [%clk 00:00:06]} 35. Kxf3
{[%emt 00:00:04] [%clk 00:00:05]} Re3+ {[%emt 00:00:01] [%clk 00:00:08]} 36. Kg4
{[%emt 00:00:01] [%clk 00:00:06]} Rg3+ {[%clk 00:00:09]} 37. Kf5 {[%emt
00:00:01] [%clk 00:00:06]} Rxg2 {[%clk 00:00:10]} 38. h4 {[%emt 00:00:05] [%clk
00:00:05]} f3 {[%emt 00:00:01] [%clk 00:00:10]} 39. Ke4 {[%emt 00:00:04] [%clk
00:00:03]} f2 {[%clk 00:00:11]} 40. Rf7 {[%emt 00:00:01] [%clk 00:00:04]} g4
{[%emt 00:00:02] [%clk 00:00:11]} 41. Ke3 {[%emt 00:00:03] [%clk 00:00:03]} g3
{[%clk 00:00:12]} 42. Rf5+ {[%emt 00:00:02] [%clk 00:00:04]} Kb4 {[%emt
00:00:02] [%clk 00:00:12]} 43. h5 {[%emt 00:00:04] [%clk 00:00:03]} Rg1 {[%emt
00:00:01] [%clk 00:00:12]} 44. h6 {[%emt 00:00:02] [%clk 00:00:03]} f1=Q {[%emt
00:00:02] [%clk 00:00:12]} 0-1

[Site "Europe Echecs"]

[Event "Championnat d'Europe de Blitz"]
[Date "2024.12.09"]
[White "Papasimakopoulos, Alexandros"]
[Black "Saric, Ante"]
[WhiteElo "2379"]
[BlackElo "2482"]
[Round "10.18"]
[Result "1/2-1/2"]
[TimeControl "180+2"]

1. d4 {[%clk 00:03:03]} Nf6 {[%emt 00:00:02]} 2. c4 {[%clk 00:03:04]} e6 {[%clk
00:03:05]} 3. Nc3 {[%clk 00:03:05]} Bb4 {[%emt 00:00:01] [%clk 00:03:06]} 4. Qb3
{[%clk 00:03:07]} c5 {[%emt 00:00:02] [%clk 00:03:05]} 5. dxc5 {[%clk 00:03:08]}
Bxc5 {[%emt 00:00:04] [%clk 00:03:04]} 6. Nf3 {[%emt 00:00:01] [%clk 00:03:09]}
b6 {[%emt 00:00:04] [%clk 00:03:01]} 7. Bg5 {[%emt 00:00:01] [%clk 00:03:10]}
Bb7 {[%emt 00:00:03] [%clk 00:03:00]} 8. e3 {[%emt 00:00:01] [%clk 00:03:11]}
O-O {[%emt 00:00:04] [%clk 00:02:59]} 9. Be2 {[%clk 00:03:12]} Be7 {[%emt
00:00:02] [%clk 00:02:59]} 10. O-O {[%emt 00:00:02] [%clk 00:03:13]} Na6 {[%emt
00:00:03] [%clk 00:02:58]} 11. Rfd1 {[%emt 00:00:08] [%clk 00:03:07]} Nc5 {[%emt
00:00:02] [%clk 00:02:58]} 12. Qc2 {[%clk 00:03:08]} Nfe4 {[%emt 00:00:04] [%clk
00:02:56]} 13. Bxe7 {[%emt 00:00:05] [%clk 00:03:05]} Qxe7 {[%emt 00:00:01]
[%clk 00:02:57]} 14. Nxe4 {[%emt 00:00:06] [%clk 00:03:01]} Bxe4 {[%emt
00:00:07] [%clk 00:02:52]} 15. Qc3 {[%emt 00:00:02] [%clk 00:03:01]} a5 {[%emt
00:00:07] [%clk 00:02:47]} 16. Nd2 {[%emt 00:00:01] [%clk 00:03:01]} Bc6 {[%emt
00:00:27] [%clk 00:02:22]} 17. Bf3 {[%clk 00:03:02]} Rac8 {[%emt 00:00:03] [%clk
00:02:21]} 18. b3 {[%emt 00:00:13] [%clk 00:02:51]} Rfd8 {[%emt 00:00:06] [%clk
00:02:17]} 19. Bxc6 {[%emt 00:00:13] [%clk 00:02:41]} dxc6 {[%emt 00:00:09]
[%clk 00:02:10]} 20. Nf3 {[%emt 00:00:01] [%clk 00:02:42]} Qf6 {[%emt 00:00:15]
[%clk 00:01:57]} 21. Qxf6 {[%emt 00:00:02] [%clk 00:02:41]} gxf6 {[%emt
00:00:01] [%clk 00:01:58]} 22. Kf1 {[%emt 00:00:05] [%clk 00:02:39]} Ne4 {[%emt
00:00:05] [%clk 00:01:55]} 23. Nd4 {[%emt 00:00:12] [%clk 00:02:29]} Rd6 {[%emt
00:00:26] [%clk 00:01:31]} 24. f3 {[%emt 00:00:12] [%clk 00:02:18]} Nc5 {[%emt
00:00:02] [%clk 00:01:31]} 25. Nc2 {[%emt 00:00:08] [%clk 00:02:12]} Rcd8 {[%emt
00:00:06] [%clk 00:01:28]} 26. Rxd6 {[%emt 00:00:04] [%clk 00:02:10]} Rxd6
{[%emt 00:00:01] [%clk 00:01:28]} 27. Ke2 {[%emt 00:00:02] [%clk 00:02:11]} Kf8
{[%emt 00:00:07] [%clk 00:01:22]} 28. Nd4 {[%emt 00:00:02] [%clk 00:02:11]} Ke7
{[%emt 00:00:16] [%clk 00:01:08]} 29. a3 {[%emt 00:00:01] [%clk 00:02:12]} Nb7
{[%emt 00:00:11] [%clk 00:00:59]} 30. b4 {[%emt 00:00:12] [%clk 00:02:02]} c5
{[%emt 00:00:02] [%clk 00:01:00]} 31. Nb5 {[%emt 00:00:01] [%clk 00:02:03]} Rd8
{[%emt 00:00:06] [%clk 00:00:56]} 32. Rb1 {[%emt 00:00:06] [%clk 00:01:59]} axb4
{[%emt 00:00:04] [%clk 00:00:54]} 33. axb4 {[%emt 00:00:01] [%clk 00:02:00]} Ra8
{[%clk 00:00:55]} 34. Nc3 {[%emt 00:00:05] [%clk 00:01:56]} Nd6 {[%emt 00:00:09]
[%clk 00:00:49]} 35. bxc5 {[%emt 00:00:05] [%clk 00:01:52]} bxc5 {[%emt
00:00:01] [%clk 00:00:51]} 36. Kd3 {[%clk 00:01:53]} h5 {[%emt 00:00:06] [%clk
00:00:46]} 37. Rb2 {[%emt 00:00:13] [%clk 00:01:42]} h4 {[%emt 00:00:02] [%clk
00:00:46]} 38. Ra2 {[%emt 00:00:02] [%clk 00:01:43]} Rxa2 {[%emt 00:00:12] [%clk
00:00:36]} 39. Nxa2 {[%clk 00:01:44]} Nb7 {[%emt 00:00:07] [%clk 00:00:31]} 40.
Nc3 {[%emt 00:00:03] [%clk 00:01:43]} f5 {[%emt 00:00:04] [%clk 00:00:29]} 41.
Ne2 {[%emt 00:00:01] [%clk 00:01:44]} Na5 {[%emt 00:00:06] [%clk 00:00:24]} 42.
Kc3 {[%emt 00:00:02] [%clk 00:01:45]} Nc6 {[%emt 00:00:02] [%clk 00:00:24]} 43.
f4 {[%emt 00:00:10] [%clk 00:01:37]} Kf6 {[%emt 00:00:08] [%clk 00:00:18]} 44.
g3 {[%emt 00:00:02] [%clk 00:01:36]} hxg3 {[%emt 00:00:01] [%clk 00:00:19]} 45.
Nxg3 {[%clk 00:01:37]} Kg6 {[%emt 00:00:03] [%clk 00:00:18]} 46. Kb3 {[%emt
00:00:03] [%clk 00:01:36]} Na5+ {[%emt 00:00:01] [%clk 00:00:20]} 47. Kc3 {[%clk
00:01:37]} Nc6 {[%clk 00:00:22]} 48. h3 {[%emt 00:00:16] [%clk 00:01:23]} f6
{[%clk 00:00:23]} 49. h4 {[%emt 00:00:03] [%clk 00:01:23]} Kh6 {[%emt 00:00:03]
[%clk 00:00:22]} 50. Kb3 {[%emt 00:00:02] [%clk 00:01:23]} Na5+ {[%emt 00:00:01]
[%clk 00:00:23]} 51. Kc3 {[%emt 00:00:01] [%clk 00:01:24]} Nc6 {[%emt 00:00:01]
[%clk 00:00:24]} 52. e4 {[%emt 00:00:09] [%clk 00:01:17]} fxe4 {[%emt 00:00:10]
[%clk 00:00:16]} 53. Nxe4 {[%clk 00:01:18]} f5 {[%emt 00:00:06] [%clk 00:00:12]}
54. Nxc5 {[%clk 00:01:18]} e5 {[%clk 00:00:14]} 55. Nd3 {[%emt 00:00:12] [%clk
00:01:08]} e4 {[%emt 00:00:02] [%clk 00:00:15]} 56. Ne5 {[%emt 00:00:04] [%clk
00:01:05]} Ne7 {[%emt 00:00:01] [%clk 00:00:16]} 57. Kd4 {[%emt 00:00:09] [%clk
00:00:59]} Kh5 {[%clk 00:00:18]} 58. c5 {[%emt 00:00:02] [%clk 00:00:59]} Kxh4
{[%clk 00:00:19]} 59. c6 {[%emt 00:00:02] [%clk 00:01:00]} Kg3 {[%emt 00:00:01]
[%clk 00:00:19]} 60. Ke3 {[%clk 00:01:01]} Nd5+ {[%emt 00:00:05] [%clk
00:00:17]} 61. Kd4 {[%clk 00:01:02]} Nxf4 {[%emt 00:00:02] [%clk 00:00:17]} 62.
Nc4 {[%emt 00:00:08] [%clk 00:00:57]} Ne6+ {[%emt 00:00:03] [%clk 00:00:16]} 63.
Ke5 {[%emt 00:00:01] [%clk 00:00:57]} Nc7 {[%emt 00:00:03] [%clk 00:00:14]} 64.
Kxf5 {[%emt 00:00:10] [%clk 00:00:51]} Kf3 {[%clk 00:00:15]} 65. Ke5 {[%emt
00:00:03] [%clk 00:00:49]} e3 {[%emt 00:00:02] [%clk 00:00:16]} 66. Nxe3 {[%emt
00:00:08] [%clk 00:00:43]} Kxe3 {[%clk 00:00:17]} 1/2-1/2

[Site "Europe Echecs"]